bitfinex/quotes_SOLUSD_20251103
["timestamp","ask_amount","ask_price","bid_price","bid_amount"]
[1762202533087,41.15271048,166.19,166.18,1e-08]
[1762202534877,20.56071048,166.19,166.18,1e-08]
[1762202535079,19.74854891,166.19,166.18,1e-08]
[1762202535309,3.94251201,166.19,166.18,1e-08]
[1762202535479,19.73970627,166.19,166.18,1e-08]
[1762202535678,25.57170395,166.19,166.18,1e-08]
[1762202535994,46.16370395,166.19,166.18,1e-08]
[1762202536376,20.55186784,166.19,166.18,1e-08]
[1762202536911,19.73970627,166.19,166.18,1e-08]
[1762202537207,40.33170627,166.19,166.18,1e-08]
[1762202537884,41.00170627,166.19,166.18,1e-08]
[1762202538079,30.54287858,166.19,166.18,1e-08]
[1762202538285,41.00170627,166.19,166.18,1e-08]
[1762202539905,3.93366937,166.19,166.18,1e-08]
[1762202540106,3.93366937,166.2,166.18,0.67000001]
[1762202540282,6.01658271,166.21,166.18,1e-08]
[1762202540283,30.38082769,166.21,166.18,1e-08]
[1762202540487,3.93366937,166.2,166.18,1e-08]
[1762202541386,6.01720921,166.19,166.18,1e-08]
[1762202541791,9.78882769,166.19,166.18,1e-08]
[1762202542596,13.72249706,166.19,166.18,1e-08]
[1762202543607,19.73970627,166.19,166.18,1e-08]
[1762202544103,25.57170395,166.19,166.18,1e-08]
[1762202544592,19.73970627,166.19,166.18,1e-08]
[1762202546996,3.93366937,166.19,166.18,0.67000001]
[1762202547403,3.93366937,166.19,166.18,1e-08]
[1762202547598,9.95053589,166.2,166.18,1e-08]
[1762202549184,3.93366937,166.2,166.18,1e-08]
[1762202549585,9.78882769,166.19,166.18,1e-08]
[1762202549781,19.60449474,166.19,166.18,1e-08]
[1762202550921,14.58465863,166.19,166.18,1e-08]
[1762202551089,19.60449474,166.19,166.18,1e-08]
[1762202551587,25.62170395,166.19,166.18,1e-08]
[1762202553195,20.60186784,166.19,166.18,1e-08]
[1762202553415,25.62170395,166.19,166.18,1e-08]
[1762202555316,30.5776837,166.19,166.18,1e-08]
[1762202557396,9.78882769,166.15,166.12,0.7]
[1762202557611,3.93366937,166.14,166.12,0.7]
[1762202557810,3.93366937,166.13,166.12,0.7]
[1762202558192,3.93366937,166.13,166.1,0.7]
[1762202558393,6.02010715,166.11,166.1,0.7]
[1762202558590,9.95377652,166.11,166.08,0.2]
[1762202558816,3.93366937,166.1,166.09,0.7]
[1762202559406,3.93366937,166.1,166.08,0.2]
[1762202559717,13.72249706,166.09,166.08,0.2]
[1762202559925,18.88449474,166.09,166.08,0.2]
[1762202560296,21.64032647,166.09,166.08,0.2]
[1762202560627,10.63098926,166.08,166.07,1e-08]
[1762202560832,30.38082769,166.02,166.01,0.2]
[1762202561007,39.40105914,166.02,166.01,0.2]
[1762202561326,47.17672698,166.02,166.01,0.2]
[1762202561526,47.87672698,166.02,166.01,0.2]
[1762202561729,40.10105914,166.02,166.01,0.2]
[1762202561909,42.23232647,166.02,166.01,0.2]
[1762202562299,42.93232647,166.02,166.01,0.2]
[1762202562606,48.95569714,166.02,166.01,0.2]
[1762202563814,41.1800293,166.02,166.01,0.2]
[1762202564012,48.95569714,166.02,166.01,0.2]
[1762202564522,40.4800293,166.02,166.01,0.2]
[1762202564728,48.25569714,166.02,166.01,0.2]
[1762202565100,48.95569714,166.02,166.01,0.2]
[1762202565324,0.14216157,166.0,165.98,0.2]
[1762202565632,21.64032647,166.0,165.98,0.2]
[1762202565803,21.64032647,166.0,165.95,0.1]
[1762202565804,31.22298926,165.99,165.95,0.1]
[1762202566004,38.2986571,165.96,165.95,0.1]
[1762202566196,42.23232647,165.96,165.95,0.1]
[1762202566409,48.25787479,165.96,165.95,0.1]
[1762202566631,40.48220695,165.96,165.95,0.1]
[1762202567122,48.25787479,165.96,165.95,0.1]
[1762202567432,34.31449706,165.96,165.95,0.8]
[1762202567717,3.93366937,165.96,165.95,0.8]
[1762202567907,3.21366937,165.96,165.95,6.82591141]
[1762202568624,3.21366937,165.96,165.95,0.8]
[1762202568827,3.21366937,165.96,165.95,21.392]
[1762202569208,3.21366937,165.96,165.95,27.41791141]
[1762202569528,3.21366937,165.96,165.95,21.392]
[1762202569704,3.21366937,165.96,165.95,27.41791141]
[1762202570512,3.21366937,165.96,165.95,21.392]
[1762202570709,3.21366937,165.96,165.95,27.41791141]
[1762202571216,3.21366937,165.96,165.95,0.8]
[1762202571621,3.21366937,165.96,165.95,6.82591141]
[1762202572025,3.21366937,165.96,165.95,0.8]
[1762202572207,3.21366937,165.96,165.95,6.82591141]
[1762202572522,3.21366937,165.96,165.95,0.8]
[1762202572709,3.21366937,165.96,165.95,6.82591141]
[1762202572916,3.21366937,165.96,165.95,0.8]
[1762202573946,3.21366937,165.96,165.95,0.1]
[1762202574228,3.21366937,165.96,165.95,0.8]
[1762202576317,6.02473732,165.99,165.95,0.8]
[1762202576528,16.51300433,166.0,165.95,0.8]
[1762202578037,16.51300433,166.0,165.95,6.82583704]
[1762202579040,9.93098926,166.02,165.96,0.7]
[1762202579237,9.78882769,166.02,165.96,0.7]
[1762202579419,26.61502441,166.03,165.96,0.7]
[1762202579822,3.94166501,166.02,165.96,0.7]
[1762202580752,9.78882769,165.99,165.95,0.1]
[1762202580923,13.7304927,165.99,165.95,0.1]
[1762202581119,14.4304927,165.99,165.95,0.1]
[1762202581570,3.94166501,165.99,165.95,6.8258984]
[1762202581880,9.78882769,166.01,165.95,6.8258984]
[1762202582052,13.7304927,166.01,165.96,0.7]
[1762202582375,14.4304927,166.01,165.96,0.7]
[1762202582872,6.02409638,166.0,165.96,0.7]
[1762202583074,9.96576139,166.0,165.96,6.72543917]
[1762202583444,9.96576139,166.0,165.96,0.7]
[1762202583445,10.67576139,166.0,165.96,0.7]
[1762202583747,10.67576139,166.0,165.97,0.67]
[1762202583748,9.96576139,166.0,165.97,0.67]
[1762202583941,3.94166501,166.0,165.97,0.67]
[1762202584147,15.81172551,166.04,165.97,0.67]
[1762202584148,3.94166501,166.03,165.97,0.67]
[1762202584374,15.81149205,166.04,165.97,0.67]
[1762202584672,3.94166501,166.03,165.97,0.67]
[1762202584863,3.94166501,166.03,165.98,6.02482226]
[1762202585066,13.7304927,166.04,165.98,6.02482226]
[1762202585318,3.94166501,166.03,165.99,0.67]
[1762202585488,6.02196623,166.06,165.99,0.67]
[1762202585489,9.78882769,166.05,165.99,0.67]
[1762202585791,9.78882769,166.03,165.95,0.1]
[1762202585945,9.78882769,166.01,165.96,0.67]
[1762202586256,9.78882769,166.01,165.95,0.1]
[1762202586257,9.78882769,165.99,165.95,0.1]
[1762202586456,9.78882769,165.99,165.95,0.77]
[1762202586684,9.78882769,165.99,165.95,6.79588973]
[1762202586981,15.8135356,165.99,165.95,0.77]
[1762202587163,3.94166501,165.98,165.96,0.67]
[1762202587661,3.94166501,165.98,165.95,0.1]
[1762202588059,3.94166501,165.98,165.95,0.77]
[1762202588262,3.94166501,165.98,165.95,0.1]
[1762202588862,6.02554832,165.96,165.95,0.1]
[1762202589066,27.67387043,165.96,165.95,0.1]
[1762202589269,33.32604572,165.96,165.95,0.1]
[1762202589863,33.32604572,165.96,165.95,1e-08]
[1762202590058,9.93098926,165.95,165.94,0.2]
[1762202590359,9.93098926,165.95,165.86,0.67]
[1762202590360,22.35832211,165.95,165.86,0.67]
[1762202590566,17.56449553,165.89,165.83,0.67]
[1762202590785,17.56449553,165.89,165.79,6.70172688]
[1762202590786,17.56449553,165.87,165.79,6.70172688]
[1762202590988,9.97084624,165.86,165.79,6.70172688]
[1762202591173,3.94166501,165.85,165.8,0.67]
[1762202591478,3.94166501,165.84,165.8,21.262]
[1762202591689,9.78882769,165.85,165.8,21.262]
[1762202591872,3.94166501,165.84,165.8,0.67]
[1762202592189,9.78882769,165.85,165.81,0.67]
[1762202592190,3.94166501,165.83,165.81,0.67]
[1762202592486,3.94166501,165.84,165.81,0.67]
[1762202592866,3.94166501,165.85,165.82,6.03063562]
[1762202593067,19.75937496,165.87,165.82,6.03063562]
[1762202593278,3.94166501,165.86,165.81,0.67]
[1762202593471,3.94166501,165.85,165.81,0.67]
[1762202593676,3.94166501,165.84,165.81,0.67]
[1762202593882,3.94166501,165.83,165.81,0.67]
[1762202594186,3.94166501,165.82,165.78,0.77]
[1762202594386,13.7304927,165.81,165.78,0.1]
[1762202594684,9.78882769,165.79,165.78,0.1]
[1762202594869,3.94166501,165.79,165.78,0.1]
[1762202595585,3.94166501,165.79,165.78,0.77]
[1762202595781,3.94166501,165.79,165.78,0.1]
[1762202596165,3.94166501,165.79,165.78,6.13209072]
[1762202596470,3.94166501,165.79,165.78,0.1]
[1762202597998,3.94166501,165.79,165.78,6.80209072]
[1762202598198,14.7234278,165.86,165.78,21.88231752]
[1762202598495,3.93600448,165.85,165.79,0.67]
[1762202598672,3.93600448,165.84,165.79,0.67]
[1762202598874,3.93600448,165.83,165.79,0.67]
[1762202599192,3.93600448,165.82,165.8,21.1097708]
[1762202599490,3.93600448,165.81,165.79,0.67]
[1762202599696,3.93600448,165.85,165.8,0.67]
[1762202599894,3.93600448,165.84,165.8,0.67]
[1762202600192,3.93600448,165.83,165.8,0.67]
[1762202600372,3.93600448,165.82,165.8,0.67]
[1762202600701,3.93600448,165.81,165.8,0.67]
[1762202601069,3.93600448,165.81,165.8,6.70136308]
[1762202603987,6.02775143,165.9,165.8,21.7797708]
[1762202603988,4.93460011,165.86,165.8,21.7797708]
[1762202604193,4.93460011,165.87,165.81,0.67]
[1762202605328,4.93460011,165.88,165.85,20.592]
[1762202605479,4.93460011,165.91,165.85,20.592]
[1762202605804,4.93460011,165.93,165.86,0.67]
[1762202606009,4.93460011,165.95,165.9,20.592]
[1762202606215,5.64460011,165.98,165.9,20.592]
[1762202606383,5.64460011,165.98,165.91,0.67]
[1762202607207,5.64460011,165.98,165.92,6.02700096]
[1762202607395,11.66947942,165.98,165.92,6.02700096]
[1762202607707,11.66947942,165.98,165.92,6.69700096]
[1762202607909,5.64460011,165.98,165.93,0.67]
[1762202608313,10.95907782,165.99,165.93,0.67]
[1762202608479,6.02450807,165.99,165.93,0.67]
[1762202609313,6.69450807,165.99,165.93,6.69651249]
[1762202609517,15.39939516,165.98,165.9,0.67]
[1762202609683,9.78882769,165.95,165.87,0.67]
[1762202609883,14.72939516,165.95,165.85,15.0738128]
[1762202610313,9.78882769,165.95,165.87,20.592]
[1762202610687,26.20256747,165.96,165.88,0.67]
[1762202610886,27.28768324,165.96,165.89,6.0280909]
[1762202611105,9.78882769,165.95,165.88,0.67]
[1762202611309,10.45882769,165.95,165.88,0.67]
[1762202612107,10.45882769,165.95,165.88,6.69838085]
[1762202612520,9.78882769,165.95,165.88,0.67]
[1762202612842,0.68,165.94,165.88,0.67]
[1762202613124,6.02663773,165.93,165.88,0.67]
[1762202613322,10.96584437,165.97,165.88,21.76955243]
[1762202613512,6.0252769,165.97,165.89,0.68]
[1762202613711,15.81410459,165.97,165.89,0.68]
[1762202614122,10.96529083,165.99,165.91,20.592]
[1762202614502,10.96529083,165.99,165.92,0.68]
[1762202614903,10.96529083,165.99,165.93,6.02663773]
[1762202615110,6.02472336,165.99,165.93,6.70663773]
[1762202615326,10.96529083,165.99,165.93,0.68]
[1762202615704,11.64529083,165.99,165.93,0.68]
[1762202615903,3.9576348,165.98,165.93,0.68]
[1762202616122,6.70472336,165.99,165.93,0.68]
[1762202616123,4.6376348,165.99,165.93,0.68]
[1762202616733,3.9576348,165.99,165.93,0.68]
[1762202616918,3.9576348,166.01,165.96,6.02554832]
[1762202617115,4.6376348,166.02,165.96,6.02554832]
[1762202617307,4.6376348,166.02,165.97,0.68]
[1762202617627,10.66074933,166.03,165.97,0.68]
[1762202619042,10.66477427,166.03,165.97,0.68]
[1762202619252,0.68,166.02,165.94,21.272]
[1762202619550,9.78882769,166.01,165.95,0.68]
[1762202620552,10.46882769,166.01,165.95,0.68]
[1762202620852,0.68,166.0,165.86,8.02918122]
[1762202621036,9.78882769,165.98,165.91,20.592]
[1762202621349,13.75048743,165.98,165.88,21.09959006]
[1762202621553,13.75048743,165.98,165.91,20.592]
[1762202622051,13.75048743,165.98,165.92,0.68]
[1762202623251,19.77560346,165.98,165.92,6.70664115]
[1762202623458,3.96165974,165.97,165.92,6.70664115]
[1762202623658,3.96165974,165.97,165.92,6.02664115]
[1762202623858,3.96165974,165.97,165.93,0.68]
[1762202624156,10.46882769,165.98,165.93,0.68]
[1762202625375,16.49371099,165.98,165.93,6.70658728]
[1762202625942,15.81371099,165.98,165.93,0.68]
[1762202626150,4.64320219,165.97,165.93,0.68]
[1762202626352,10.46882769,165.98,165.93,0.68]
[1762202626647,4.64300981,165.98,165.93,0.68]
[1762202627058,0.68,165.98,165.93,0.68]
[1762202627450,6.70504964,165.98,165.93,6.70652295]
[1762202627644,10.66805945,165.98,165.9,20.592]
[1762202627844,0.68,165.97,165.91,0.68]
[1762202629548,0.68,165.97,165.91,6.70706186]
[1762202629745,0.68,165.97,165.9,35.66131886]
[1762202629746,9.78882769,165.96,165.9,20.592]
[1762202629955,9.78882769,165.96,165.9,21.272]
[1762202630258,13.7518375,165.96,165.9,21.272]
[1762202630853,19.7774469,165.96,165.9,27.299705]
[1762202631058,4.64300981,165.95,165.9,6.027705]
[1762202631367,9.78882769,165.94,165.88,0.68]
[1762202631547,10.46882769,165.94,165.88,0.68]
[1762202631735,10.46882769,165.94,165.88,6.70833952]
[1762202631941,10.46882769,165.94,165.88,0.68]
[1762202632141,0.68,165.93,165.86,6.70918123]
[1762202632360,0.68,165.93,165.86,21.78213432]
[1762202632658,0.68,165.93,165.87,0.68]
[1762202633049,6.70671457,165.93,165.88,6.0284543]
[1762202633258,4.64300981,165.93,165.88,6.0284543]
[1762202633451,0.68,165.93,165.89,0.68]
[1762202633652,15.06387081,165.96,165.89,0.68]
[1762202633653,24.55744973,165.95,165.89,0.68]
[1762202633959,3.96569529,165.94,165.89,0.68]
[1762202634436,4.64569529,165.94,165.89,0.68]
[1762202635044,6.02663773,165.93,165.89,0.68]
[1762202635249,10.6720503,165.94,165.89,6.70804225]
[1762202635464,10.67197545,165.94,165.89,6.70804225]
[1762202635863,10.67197545,165.94,165.89,0.68]
[1762202636252,4.64569529,165.94,165.89,6.70806066]
[1762202636454,4.64569529,165.94,165.9,0.68]
[1762202637149,10.67198324,165.94,165.9,6.70755607]
[1762202637352,10.67198324,165.94,165.9,0.68]
[1762202637554,6.70628795,165.94,165.9,0.68]
[1762202637751,4.64569529,165.94,165.9,6.70762127]
[1762202638152,4.64858569,165.94,165.9,6.70762127]
[1762202638548,10.67487303,165.94,165.9,6.70762127]
[1762202638751,4.64858569,165.94,165.9,6.70762127]
[1762202638946,10.67489351,165.94,165.89,6.02797095]
[1762202639167,10.67489351,165.94,165.89,6.70797095]
[1762202639673,10.67489351,165.94,165.9,0.68]
[1762202640048,10.67489351,165.94,165.89,6.02797095]
[1762202640250,10.46882769,165.93,165.85,20.592]
[1762202640452,5.18534433,165.92,165.84,0.68]
[1762202640789,0.14216157,165.88,165.8,6.03136308]
[1762202640959,0.14216157,165.86,165.79,0.68]
[1762202641154,0.14216157,165.86,165.79,6.71159665]
[1762202641356,9.78882769,165.84,165.79,6.71159665]
[1762202641866,3.96858569,165.88,165.8,0.68]
[1762202642072,10.46882769,165.88,165.8,0.68]
[1762202642254,0.68,165.87,165.8,0.68]
[1762202643063,0.68,165.87,165.8,21.78967716]
[1762202643573,0.68,165.87,165.81,0.72]
[1762202644273,9.78882769,165.85,165.78,0.82]
[1762202644472,13.75741338,165.85,165.78,6.85204494]
[1762202644677,0.72,165.84,165.78,0.82]
[1762202645059,4.68858569,165.84,165.78,0.82]
[1762202645395,9.78882769,165.83,165.78,0.1]
[1762202645551,10.50882769,165.83,165.78,0.1]
[1762202645753,0.72,165.82,165.78,0.1]
[1762202646153,4.69872192,165.82,165.78,0.82]
[1762202646453,4.69872192,165.82,165.78,6.13208133]
[1762202646648,0.72,165.82,165.78,6.13208133]
[1762202646862,6.75069179,165.82,165.78,0.1]
[1762202647061,10.72941371,165.82,165.78,0.1]
[1762202647266,0.72,165.81,165.78,0.1]
[1762202647682,9.78882769,165.8,165.78,0.1]
[1762202648058,10.50882769,165.79,165.78,0.1]
[1762202648267,20.66143806,165.79,165.78,0.1]
[1762202652496,30.38082769,165.75,165.65,0.72]
[1762202652659,9.78882769,165.73,165.65,0.72]
[1762202652976,3.97872192,165.74,165.65,6.75675277]
[1762202653182,9.78882769,165.75,165.65,21.84881434]
[1762202653379,21.312,165.76,165.66,21.312]
[1762202653686,0.72,165.76,165.68,20.592]
[1762202654064,0.72,165.76,165.69,0.72]
[1762202654261,9.78882769,165.74,165.66,15.09041104]
[1762202654587,13.7495307,165.74,165.65,6.03682463]
[1762202654881,0.14216157,165.71,165.64,6.85717025]
[1762202655393,0.86216157,165.71,165.64,0.82]
[1762202655677,9.78882769,165.7,165.64,6.85716578]
[1762202656061,30.38082769,165.72,165.65,0.72]
[1762202656276,36.41525467,165.72,165.66,6.03646021]
[1762202656583,0.14216157,165.74,165.66,21.12761075]
[1762202656584,9.78882769,165.74,165.66,21.12761075]
[1762202656792,10.50882769,165.74,165.67,0.72]
[1762202656993,0.72,165.73,165.67,0.72]
[1762202657197,21.11371883,165.77,165.67,0.72]
[1762202657373,9.78882769,165.74,165.67,0.72]
[1762202657574,9.78882769,165.75,165.67,0.72]
[1762202658286,6.03354651,165.74,165.68,6.03573153]
[1762202658483,9.78882769,165.74,165.69,0.72]
[1762202658803,9.78882769,165.76,165.69,0.72]
[1762202658986,10.50882769,165.76,165.69,0.72]
[1762202659791,9.78882769,165.77,165.7,6.03500301]
[1762202659990,10.50882769,165.77,165.71,0.72]
[1762202660297,0.72,165.78,165.71,0.72]
[1762202660799,9.78882769,165.77,165.71,0.72]
[1762202661092,9.78882769,165.77,165.69,21.84367769]
[1762202661274,9.78882769,165.75,165.69,21.84367769]
[1762202661477,9.78882769,165.75,165.7,0.72]
[1762202661795,9.78882769,165.75,165.71,6.03463882]
[1762202661992,9.78882769,165.75,165.7,6.75494534]
[1762202662496,9.78882769,165.75,165.71,0.72]
[1762202662919,0.72,165.78,165.71,0.72]
[1762202663277,4.66615368,165.78,165.71,0.72]
[1762202663599,4.66649415,165.78,165.71,0.72]
[1762202663812,14.45532184,165.8,165.72,21.11996138]
[1762202664183,13.73532184,165.8,165.73,0.72]
[1762202664387,9.78882769,165.79,165.73,0.72]
[1762202665819,9.78882769,165.79,165.74,6.03354651]
[1762202665983,9.78882769,165.8,165.74,21.1174128]
[1762202666188,13.74013775,165.8,165.75,0.72]
[1762202666805,20.49153245,165.8,165.75,0.72]
[1762202667010,4.67131006,165.79,165.72,6.03427468]
[1762202667211,4.67131006,165.79,165.75,0.72]
[1762202667416,4.67131006,165.79,165.73,0.72]
[1762202667593,3.95131006,165.79,165.73,0.72]
[1762202667798,3.95131006,165.79,165.74,6.03354651]
[1762202668004,43.18,165.78,165.69,15.77802592]
[1762202668326,0.14216157,165.76,165.65,21.1288862]
[1762202668497,3.95340829,165.76,165.7,0.69]
[1762202668687,3.81701607,165.77,165.7,0.69]
[1762202669491,6.0318083,165.79,165.7,0.69]
[1762202669890,6.03136308,165.8,165.71,21.12123588]
[1762202670319,6.03136308,165.8,165.72,0.69]
[1762202670691,9.78882769,165.79,165.72,0.69]
[1762202671419,9.78882769,165.79,165.73,6.03391057]
[1762202671598,15.82062492,165.79,165.73,6.03391057]
[1762202671799,9.78882769,165.79,165.73,21.80868701]
[1762202672324,11.66850437,165.83,165.74,0.69]
[1762202672521,9.78882769,165.82,165.74,0.69]
[1762202673420,10.48882769,165.82,165.75,21.11613875]
[1762202673626,9.78882769,165.82,165.75,21.11613875]
[1762202673932,9.78882769,165.83,165.76,0.68]
[1762202674099,9.78882769,165.84,165.76,0.68]
[1762202674599,9.78882769,165.85,165.78,20.592]
[1762202675111,9.78882769,165.85,165.79,0.68]
[1762202675600,9.78882769,165.85,165.8,6.03136308]
[1762202676129,9.78882769,165.85,165.8,6.71136308]
[1762202676130,10.48882769,165.85,165.8,6.71136308]
[1762202676295,16.51844922,165.85,165.8,6.71136308]
[1762202677428,5.04318276,165.83,165.69,30.17566092]
[1762202677719,5.04318276,165.83,165.76,0.68]
[1762202677720,9.78882769,165.81,165.76,0.68]
[1762202678023,4.95820182,165.84,165.76,6.71272451]
[1762202678196,9.78882769,165.83,165.76,6.71272451]
[1762202678391,9.78882769,165.83,165.77,0.68]
[1762202678694,15.45849672,165.83,165.77,0.68]
[1762202678906,9.78882769,165.83,165.77,0.68]
[1762202679605,9.78882769,165.83,165.78,6.03209072]
[1762202680097,10.99958634,165.84,165.79,0.68]
[1762202680504,14.75849672,165.85,165.79,0.68]
[1762202680702,3.98132806,165.84,165.79,0.68]
[1762202680901,3.98132806,165.83,165.79,0.68]
[1762202681204,3.98132806,165.82,165.79,0.68]
[1762202681408,3.98132806,165.81,165.79,0.68]
[1762202681611,3.98132806,165.8,165.79,6.71172688]
[1762202681802,3.98132806,165.83,165.79,6.71172688]
[1762202681998,3.98132806,165.82,165.8,0.68]
[1762202682198,3.98132806,165.81,165.8,0.68]
[1762202682398,3.98132806,165.83,165.8,0.68]
[1762202682612,3.98132806,165.82,165.8,0.68]
[1762202682812,3.98132806,165.81,165.8,0.68]
[1762202683621,3.98132806,165.83,165.8,0.68]
[1762202683806,3.98132806,165.82,165.8,0.68]
[1762202684005,3.98132806,165.81,165.8,6.7113061]
[1762202685308,3.98132806,165.84,165.8,6.7113061]
[1762202685509,3.98132806,165.83,165.81,0.68]
[1762202685714,3.98132806,165.82,165.81,0.68]
[1762202686111,3.98132806,165.82,165.81,6.71099933]
[1762202686832,3.98132806,165.84,165.81,0.68]
[1762202687023,3.98132806,165.83,165.81,0.68]
[1762202687224,3.98132806,165.82,165.81,0.68]
[1762202687429,3.98132806,165.84,165.81,6.71099933]
[1762202687612,3.98132806,165.83,165.81,6.71099933]
[1762202687813,3.98132806,165.82,165.81,0.68]
[1762202688330,3.98132806,165.84,165.81,0.68]
[1762202688510,3.98132806,165.83,165.81,0.68]
[1762202688711,3.98132806,165.82,165.81,0.68]
[1762202688910,3.98132806,165.84,165.81,0.68]
[1762202689236,10.99932969,165.85,165.81,0.68]
[1762202689237,3.98132806,165.83,165.81,0.68]
[1762202689438,3.98132806,165.82,165.81,0.68]
[1762202689630,3.98132806,165.84,165.81,0.68]
[1762202689830,3.98132806,165.83,165.79,6.71172688]
[1762202690030,3.98132806,165.82,165.79,6.71172688]
[1762202690213,3.98132806,165.84,165.8,0.68]
[1762202690412,3.98132806,165.83,165.8,0.68]
[1762202690715,3.98132806,165.84,165.8,0.68]
[1762202690915,9.78882769,165.87,165.8,0.68]
[1762202690916,3.98132806,165.85,165.8,0.68]
[1762202691122,14.75849672,165.87,165.8,0.68]
[1762202691123,3.98132806,165.86,165.8,0.68]
[1762202691433,3.98132806,165.86,165.81,20.592]
[1762202691640,3.98132806,165.87,165.81,20.592]
[1762202691941,4.96966903,165.88,165.82,0.68]
[1762202691942,3.98132806,165.86,165.82,0.68]
[1762202692240,3.98132806,165.87,165.83,6.03027196]
[1762202692534,3.98132806,165.88,165.83,21.10595187]
[1762202692840,3.98132806,165.87,165.84,0.68]
[1762202693011,3.98132806,165.88,165.84,0.68]
[1762202693413,3.98132806,165.89,165.84,0.68]
[1762202693823,3.98132806,165.88,165.84,0.68]
[1762202694032,3.98132806,165.89,165.84,0.68]
[1762202694209,3.98132806,165.89,165.85,6.02954476]
[1762202694409,10.0094442,165.89,165.84,6.7097802]
[1762202694828,10.0094442,165.89,165.85,0.68]
[1762202695209,3.98132806,165.89,165.85,0.68]
[1762202695417,0.7,165.88,165.83,0.68]
[1762202695615,22.47079028,165.89,165.82,0.68]
[1762202695826,9.78882769,165.87,165.82,0.68]
[1762202696037,13.77015575,165.87,165.82,0.68]
[1762202696217,10.01050929,165.86,165.82,0.68]
[1762202697019,3.98132806,165.86,165.82,6.71057352]
[1762202697342,9.78882769,165.87,165.82,6.71057352]
[1762202697343,13.77015575,165.87,165.82,6.71057352]
[1762202697530,13.77015575,165.87,165.83,0.68]
[1762202698028,19.79902326,165.87,165.83,0.68]
[1762202698225,3.98132806,165.86,165.83,6.70996939]
[1762202698439,3.98132806,165.87,165.83,6.70996939]
[1762202698644,3.98132806,165.87,165.84,0.68]
[1762202699525,10.01019331,165.87,165.82,0.68]
[1762202699733,10.01019331,165.87,165.82,6.71051827]
[1762202699930,3.98132806,165.87,165.82,6.71051827]
[1762202700130,3.98132806,165.87,165.83,0.68]
[1762202700349,27.8794233,165.92,165.84,21.1046792]
[1762202700350,3.98132806,165.89,165.84,21.1046792]
[1762202700641,4.96966903,165.92,165.87,20.592]
[1762202700642,3.98132806,165.92,165.87,20.592]
[1762202700840,3.98132806,165.93,165.88,0.68]
[1762202701139,3.98132806,165.94,165.88,0.68]
[1762202701327,3.98132806,165.93,165.88,0.68]
[1762202702118,3.0309655,165.9,165.83,26.6221569]
[1762202702448,3.98132806,165.92,165.84,0.7]
[1762202702742,0.2,166.0,165.92,20.592]
[1762202703045,0.2,166.0,165.93,0.7]
[1762202703727,0.2,166.0,165.94,0.14216157]
[1762202704131,0.2,166.0,165.97,20.592]
[1762202704534,0.2,166.0,165.98,0.7]
[1762202705943,21.98438808,166.0,165.93,0.7]
[1762202706148,9.78882769,165.99,165.94,0.7]
[1762202706334,15.81336067,165.99,165.94,0.7]
[1762202706536,16.51336067,165.99,165.94,0.7]
[1762202707343,0.7,165.98,165.91,0.7]
[1762202707553,8.47451015,165.98,165.91,0.7]
[1762202707853,0.7,165.98,165.91,0.7]
[1762202708034,8.47451015,165.98,165.91,0.7]
[1762202708450,0.7,165.98,165.91,6.72732222]
[1762202708642,10.48882769,165.97,165.91,0.7]
[1762202708950,10.48882769,165.97,165.9,0.7]
[1762202709951,10.48882769,165.97,165.8,18.11867733]
[1762202709952,17.56333784,165.95,165.86,0.7]
[1762202710139,6.02376708,166.01,165.91,0.7]
[1762202710457,6.22421521,166.0,165.92,6.02700096]
[1762202711056,6.92421521,166.0,165.93,0.7]
[1762202711629,10.48882769,165.99,165.87,20.592]
[1762202711944,9.78882769,165.97,165.9,0.7]
[1762202712334,6.02554832,165.96,165.9,0.7]
[1762202712942,6.02554832,165.96,165.9,6.72765688]
[1762202713144,10.48882769,165.95,165.87,20.592]